{"text_format":"1","workbook":"xlsx","n_sheets":4,"sheets":["Paramètres campagne","Méthode de calcul & exemple","Ma feuille de travail - GO","Ma feuille de travail - SO"],"not_rendered":{"charts":0,"images":0,"macros":1,"external_links":0,"defined_names":2,"comments":0,"pivot_tables":0},"unopened":[],"bounds":{"document_bytes":16777216,"sheet_cells":100000,"rows_first":2000,"rows_last":500,"rows_between":2000,"halvings":0,"cell_chars":16384,"cell_head_chars":4096},"cells_cut":0,"cells_raw":0,"read":"whole","date_system":"1900"}

{"sheet":"Paramètres campagne","index":0,"n_rows":35,"n_cols":7,"rows_kept":35,"cut":false,"hidden":false,"merged":[[0,0,0,6]]}
["PARAMETRES DES CAMPAGNES INTEMPERIES"]
[]
["Campagne en cours","N° de campagne","Date de début de campagne","Date de fin de campagne","Abattement annuel","Taux de cotisation GO","Taux de cotisation SO"]
[null,64,"2009-04-01","2010-03-31",69684,6.1999999999999998E-3,1.8E-3]
[null,65,"2010-04-01","2011-03-31",70560,6.1999999999999998E-3,1.8E-3]
[null,66,"2011-04-01","2012-03-31",70884,7.6E-3,1.8E-3]
[null,67,"2012-04-01","2013-03-31",73524,8.3999999999999995E-3,1.9E-3]
[null,68,"2013-04-01","2013-09-30",75204,1.14E-2,2.5999999999999999E-3]
[{"$f":"IF(A8=\"X\",\"X2\",\"\")","v":""},68,"2013-10-01","2014-03-31",75204,1.37E-2,3.0999999999999999E-3]
[null,69,"2014-04-01","2015-03-31",75444,1.37E-2,3.0999999999999999E-3]
[null,70,"2015-04-01","2016-03-31",76248,1.37E-2,3.0999999999999999E-3]
[null,71,"2016-04-01","2017-03-31",76884,9.7999999999999997E-3,2.0999999999999999E-3]
[null,72,"2017-04-01","2018-03-31",78084,9.7999999999999997E-3,2.0999999999999999E-3]
[null,73,"2018-04-01","2018-09-30",79044,8.3999999999999995E-3,1.6999999999999999E-3]
[{"$f":"IF(A14=\"X\",\"X2\",\"\")","v":""},73,"2018-10-01","2019-03-31",79044,3.3999999999999998E-3,6.9999999999999999E-4]
[null,74,"2019-04-01","2020-03-31",80244,7.4000000000000003E-3,1.5E-3]
[null,75,"2020-04-01","2021-03-31",81204,7.4000000000000003E-3,1.5E-3]
[null,76,"2021-04-01","2022-03-31",82008,6.7999999999999996E-3,1.2999999999999999E-3]
["X",77,"2022-04-01","2023-03-31",84564,6.7999999999999996E-3,1.2999999999999999E-3]
[]
[]
[]
[]
[]
[]
[]
[]
[]
[]
[]
[]
[]
[]
[]
[null,null,null,null,null,null,"S00056-10"]

{"sheet":"Méthode de calcul & exemple","index":1,"n_rows":50,"n_cols":9,"rows_kept":50,"cut":false,"hidden":false,"merged":[[10,0,10,8],[12,0,12,8],[13,0,13,8],[0,0,0,8],[6,0,6,8],[3,0,3,8],[7,0,7,8],[11,0,11,8],[49,0,49,8],[47,0,47,5],[31,0,32,0],[29,0,29,3],[31,6,31,8],[31,4,32,4],[31,5,32,5],[31,1,31,3],[29,5,29,8]]}
["METHODE ET EXEMPLE DE CALCUL DE L'ABATTEMENT INTEMPERIES"]
[null,null,null,null,null,null,null,null,"S00056-10"]
["Rôle de l'abattement intempéries :"]
["L'abattement intempéries sert à vérifier que l'adhérent atteint sur une campagne annuelle (du 1er avril au 31 mars de chaque année) un montant minimum de salaires à déclarer pour :"]
["- verser une cotisation intempéries ;"]
["- et par conséquent bénéficier de remboursements en cas d'arrêt de travail des salariés pour cause d'intempéries."]
["Ainsi, si l'abattement, pour les 12 mois de la campagne, vaut 50 000 €, un adhérent qui déclare 40 000 € de cotisations intempéries en 12 mois déduira au total 40 000 € d'abattement intempéries et ne versera donc rien au régime intempéries. Par conséquent, en cas de déclaration d'arrêt pour cause d'intempéries, il ne recevra aucun remboursement."]
["Un adhérent qui commence à cotiser en cours d'année se verra attribuer un douzième d'abattement par mois de cotisation commencé."]
[]
["Comment déduire l'abattement intempéries ?"]
["La déduction de l'abattement intempéries est automatique pour les adhérents qui utilisent la TDP ou la DSN pour déclarer leurs cotisations mensuelles. Sur le site cnetp.fr son montant apparaît, soit au niveau de la déclaration de salaires (TDP), soit de l'appel de cotisations (DSN). "]
["La déduction s'opère chaque mois d'une campagne sous le \"total des cotisations\". Le montant de l'abattement déduit ne dépasse jamais celui de la cotisation intempéries indiqué sur la déclaration."]
["Pour les adhérents qui n’utilisent pas la DSN, il est donc indispensable de renseigner systématiquement le montant de l’assiette plafonnée sur chacune de leurs déclarations de salaires."]
[{"$f":"\"La déduction s'arrête lorsque le cumul des assiettes de cotisations intempéries déclaré depuis la déclaration du mois d'avril de la campagne en cours, atteint le montant annuel de l'abattement, soit \"&TEXT($B$26,\"# ### €\")&\" pour la \"&$F$18&\".\"","v":"La déduction s'arrête lorsque le cumul des assiettes de cotisations intempéries déclaré depuis la déclaration du mois d'avril de la campagne en cours, atteint le montant annuel de l'abattement, soit 84 564 € pour la 77ème campagne."}]
[]
[]
[]
["Campagne du :",{"$f":"VLOOKUP(\"X\",'Paramètres campagne'!$A$3:$G$19,3,FALSE)","v":"2022-04-01"},"au",{"$f":"IF(OR(VLOOKUP(\"X\",'Paramètres campagne'!$A$3:$G$19,2,FALSE)=68,VLOOKUP(\"X\",'Paramètres campagne'!$A$3:$G$19,2,FALSE)=73),VLOOKUP(\"X2\",'Paramètres campagne'!$A$3:$G$19,4,FALSE),VLOOKUP(\"X\",'Paramètres campagne'!$A$3:$G$19,4,FALSE))","v":"2023-03-31"},null,{"$f":"VLOOKUP(\"X\",'Paramètres campagne'!$A$3:$G$19,2)&\"ème campagne\"","v":"77ème campagne"}]
[]
["Taux d'appel de la cotisation intempéries:",null,null,"Gros œuvre",{"$f":"VLOOKUP(\"X\",'Paramètres campagne'!$A$3:$G$19,6,FALSE)","v":6.7999999999999996E-3},{"$f":"IF(ISERROR(VLOOKUP(\"X2\",'Paramètres campagne'!$A$3:$G$19,6,FALSE)),\"\",VLOOKUP(\"X2\",'Paramètres campagne'!$A$3:$G$19,6,FALSE))","v":""}]
[null,null,null,"Second œuvre",{"$f":"VLOOKUP(\"X\",'Paramètres campagne'!$A$3:$G$19,7,FALSE)","v":1.2999999999999999E-3},{"$f":"IF(ISERROR(VLOOKUP(\"X2\",'Paramètres campagne'!$A$3:$G$19,7,FALSE)),\"\",VLOOKUP(\"X2\",'Paramètres campagne'!$A$3:$G$19,7,FALSE))","v":""}]
[]
["Montant de l'abattement intempéries annuel :"]
[]
[null,"Base annuelle maximale à déduire","Taux de cotisation","Montant annuel maximal à déduire\n(sauf écarts d'arrondis)"]
["Gros œuvre",{"$f":"VLOOKUP(\"X\",'Paramètres campagne'!$A$3:$G$19,5,FALSE)","v":84564},{"$f":"$E$20","v":6.7999999999999996E-3},{"$f":"ROUND(ROUND(B26,0)*C26,2)","v":575.04}]
["Second œuvre",{"$f":"VLOOKUP(\"X\",'Paramètres campagne'!$A$3:$G$19,5,FALSE)","v":84564},{"$f":"$E$21","v":1.2999999999999999E-3},{"$f":"ROUND(ROUND(B27,0)*C27,2)","v":109.93}]
[]
[]
["1 - Saisir chaque mois, dans la colonne \"Assiette\" du tableau \nci-dessous, le montant des salaires intempéries indiqué sur la ligne \"INTEMPERIES GO\" de votre déclaration de salaires ou de l'appel de cotisations généré à partir de votre DSN.\n\n2 - Sauvegarder le fichier.\n\n3 - Vérifier le montant de la cotisation de votre déclaration sur la ligne \"INTEMPERIES GO\".",null,null,null,null,"4 - Sur cnetp.fr vous pouvez alors retrouver, au niveau de la déclaration de salaires (TDP) ou de l'appel de cotisations (DSN), le montant de l'ABATTEMENT A DEDUIRE calculé automatiquement.\n\n5 - Le montant à régler en bas de la déclaration tient compte de l'abattement intempéries à déduire."]
[]
["Mois de la déclaration de salaires","Cotisation intempéries déclarée",null,null,"Abattement déjà déduit","Abattement restant à déduire","Abattement à déduire de la déclaration"]
[null,"Assiette","Taux","Montant",null,null,"Assiette","Taux","Montant"]
[{"$f":"B18","v":"2022-04-01"},17500.650000000001,{"$f":"$E$20","v":6.7999999999999996E-3},{"$f":"ROUND(ROUND(B34,0)*C34,2)","v":119.01},0,{"$f":"$B$26-E34","v":84564},{"$f":"MIN(ROUND(B34,0),F34)","v":17501},{"$f":"C34","v":6.7999999999999996E-3},{"$f":"ROUND(ROUND(G34,0)*H34,2)","v":119.01}]
[{"$f":"A34+30","v":"2022-05-01"},17052.740000000002,6.7999999999999996E-3,115.96,{"$f":"G34","v":17501},67063,{"$f":"MIN(ROUND(B35,0),F35)","v":17053},{"$f":"C35","v":6.7999999999999996E-3},115.96]
[{"$f":"A35+31","v":"2022-06-01"},12506.05,6.7999999999999996E-3,85.04,{"$f":"SUM($G$34:G35)","v":34554},50010,12506,6.7999999999999996E-3,85.04]
["2022-07-01",18816.32,6.7999999999999996E-3,127.95,{"$f":"SUM($G$34:G36)","v":47060},37504,18816,6.7999999999999996E-3,127.95]
[{"$f":"A37+31","v":"2022-08-01"},19400,6.7999999999999996E-3,131.91999999999999,{"$f":"SUM($G$34:G37)","v":65876},18688,18688,6.7999999999999996E-3,127.08]
[{"$f":"A38+31","v":"2022-09-01"},0,6.7999999999999996E-3,0,{"$f":"SUM($G$34:G38)","v":84564},{"$f":"$B$26-E39","v":0},0,6.7999999999999996E-3,0]
["2022-10-01",10762,{"$f":"IF(OR(VLOOKUP(\"X\",'Paramètres campagne'!$A$3:$G$19,2,FALSE)=68,VLOOKUP(\"X\",'Paramètres campagne'!$A$3:$G$19,2,FALSE)=73),$F$20,$E$20)","v":6.7999999999999996E-3},73.180000000000007,{"$f":"SUM($G$34:G39)","v":84564},0,0,6.7999999999999996E-3,0]
[{"$f":"A40+31","v":"2022-11-01"},14658,{"$f":"IF(OR(VLOOKUP(\"X\",'Paramètres campagne'!$A$3:$G$19,2,FALSE)=68,VLOOKUP(\"X\",'Paramètres campagne'!$A$3:$G$19,2,FALSE)=73),$F$20,$E$20)","v":6.7999999999999996E-3},99.67,{"$f":"SUM($G$34:G40)","v":84564},0,0,6.7999999999999996E-3,0]
["2022-12-01",13245,{"$f":"IF(OR(VLOOKUP(\"X\",'Paramètres campagne'!$A$3:$G$19,2,FALSE)=68,VLOOKUP(\"X\",'Paramètres campagne'!$A$3:$G$19,2,FALSE)=73),$F$20,$E$20)","v":6.7999999999999996E-3},90.07,{"$f":"SUM($G$34:G41)","v":84564},0,0,6.7999999999999996E-3,0]
[{"$f":"A42+31","v":"2023-01-01"},12547,{"$f":"IF(OR(VLOOKUP(\"X\",'Paramètres campagne'!$A$3:$G$19,2,FALSE)=68,VLOOKUP(\"X\",'Paramètres campagne'!$A$3:$G$19,2,FALSE)=73),$F$20,$E$20)","v":6.7999999999999996E-3},85.32,{"$f":"SUM($G$34:G42)","v":84564},0,0,6.7999999999999996E-3,0]
[{"$f":"A43+31","v":"2023-02-01"},11256,{"$f":"IF(OR(VLOOKUP(\"X\",'Paramètres campagne'!$A$3:$G$19,2,FALSE)=68,VLOOKUP(\"X\",'Paramètres campagne'!$A$3:$G$19,2,FALSE)=73),$F$20,$E$20)","v":6.7999999999999996E-3},76.540000000000006,{"$f":"SUM($G$34:G43)","v":84564},0,0,6.7999999999999996E-3,0]
["2023-03-03",13620,{"$f":"IF(OR(VLOOKUP(\"X\",'Paramètres campagne'!$A$3:$G$19,2,FALSE)=68,VLOOKUP(\"X\",'Paramètres campagne'!$A$3:$G$19,2,FALSE)=73),$F$20,$E$20)","v":6.7999999999999996E-3},92.62,{"$f":"SUM($G$34:G44)","v":84564},0,0,6.7999999999999996E-3,0]
["Total de la campagne",{"$f":"SUM(B34:B45)","v":161363.76},null,{"$f":"SUM(D34:D45)","v":1097.2799999999997},null,null,{"$f":"SUM(G34:G45)","v":84564},null,{"$f":"SUM(I34:I45)","v":575.04}]
[]
["Dans cet exemple, l'adhérent peut déduire de l'abattement intempéries pendant les 5 premiers mois de la campagne (d'avril à août)."]
[]
["Pendant les 4 premiers mois, la déduction est égale à la cotisation. Pour le mois d'août, la déduction n'est que partielle, car le plafond annuel pour cette campagne est atteint."]

{"sheet":"Ma feuille de travail - GO","index":2,"n_rows":37,"n_cols":9,"rows_kept":37,"cut":false,"hidden":false,"merged":[[22,5,23,5],[22,1,22,3],[0,0,0,8],[22,0,23,0],[20,0,20,3],[15,0,15,8],[16,0,16,8],[17,0,17,8],[20,5,20,8],[22,6,22,8],[22,4,23,4],[14,0,14,8]]}
["MA FEUILLE DE TRAVAIL - INTEMPERIES GROS ŒUVRE"]
[null,null,null,null,null,null,null,null,"I0029 V2 (090409)"]
[]
["Campagne du :",{"$f":"VLOOKUP(\"X\",'Paramètres campagne'!$A$3:$G$19,3,FALSE)","v":"2022-04-01"},"au",{"$f":"IF(OR(VLOOKUP(\"X\",'Paramètres campagne'!$A$3:$G$19,2,FALSE)=68,VLOOKUP(\"X\",'Paramètres campagne'!$A$3:$G$19,2,FALSE)=73),VLOOKUP(\"X2\",'Paramètres campagne'!$A$3:$G$19,4,FALSE),VLOOKUP(\"X\",'Paramètres campagne'!$A$3:$G$19,4,FALSE))","v":"2023-03-31"},null,{"$f":"VLOOKUP(\"X\",'Paramètres campagne'!$A$3:$G$19,2)&\"ème campagne\"","v":"77ème campagne"}]
[]
["Taux d'appel de la cotisation intempéries:",null,null,"Gros œuvre",{"$f":"VLOOKUP(\"X\",'Paramètres campagne'!$A$3:$G$19,6,FALSE)","v":6.7999999999999996E-3},{"$f":"IF(ISERROR(VLOOKUP(\"X2\",'Paramètres campagne'!$A$3:$G$19,6,FALSE)),\"\",VLOOKUP(\"X2\",'Paramètres campagne'!$A$3:$G$19,6,FALSE))","v":""}]
[null,null,null,"Second œuvre",{"$f":"VLOOKUP(\"X\",'Paramètres campagne'!$A$3:$G$19,7,FALSE)","v":1.2999999999999999E-3},{"$f":"IF(ISERROR(VLOOKUP(\"X2\",'Paramètres campagne'!$A$3:$G$19,7,FALSE)),\"\",VLOOKUP(\"X2\",'Paramètres campagne'!$A$3:$G$19,7,FALSE))","v":""}]
[]
["Montant de l'abattement intempéries annuel :"]
[]
[null,"Base annuelle maximale à déduire","Taux de cotisation","Montant annuel maximal à déduire\n(sauf écarts d'arrondis)"]
[null,{"$f":"VLOOKUP(\"X\",'Paramètres campagne'!$A$3:$G$19,5,FALSE)","v":84564},{"$f":"$E$6","v":6.7999999999999996E-3},{"$f":"ROUND(ROUND(B12,0)*C12,2)","v":575.04}]
[]
["Comment déduire l'abattement intempéries ?"]
["La déduction de l'abattement intempéries est automatique pour les adhérents qui utilisent la TDP ou la DSN pour déclarer leurs cotisations mensuelles. Sur le site cnetp.fr son montant apparaît, soit au niveau de la déclaration de salaires (TDP), soit de l'appel de cotisations (DSN). "]
["La déduction s'opère chaque mois d'une campagne sous le \"total des cotisations\". Le montant de l'abattement déduit ne dépasse jamais celui de la cotisation intempéries indiqué sur la déclaration."]
["Pour les adhérents qui n’utilisent pas la DSN, il est donc indispensable de renseigner systématiquement le montant de l’assiette plafonnée sur chacune de leurs déclarations de salaires."]
[{"$f":"\"La déduction s'arrête lorsque le cumul des assiettes de cotisations intempéries déclaré atteint le montant annuel de l'abattement, soit \"&TEXT(B12,\"# ### €\")&\" pour la \"&F4&\".\"","v":"La déduction s'arrête lorsque le cumul des assiettes de cotisations intempéries déclaré atteint le montant annuel de l'abattement, soit 84 564 € pour la 77ème campagne."}]
[null,null,null,null,null,null,null,null,"S00056-10"]
["MA FEUILLE DE TRAVAIL GROS ŒUVRE"]
["1 - Saisir chaque mois, dans la colonne \"Assiette\" du tableau \nci-dessous, le montant des salaires intempéries indiqué sur la ligne \"INTEMPERIES GO\" de votre déclaration de salaires ou de l'appel de cotisations généré à partir de votre DSN.\n\n2 - Sauvegarder le fichier.\n\n3 - Vérifier le montant de la cotisation de votre déclaration sur la ligne \"INTEMPERIES GO\".",null,null,null,null,"4 - Sur cnetp.fr vous pouvez alors retrouver, au niveau de la déclaration de salaires (TDP) ou de l'appel de cotisations (DSN), le montant de l'ABATTEMENT A DEDUIRE calculé automatiquement.\n\n5 - Le montant à régler en bas de la déclaration tient compte de l'abattement intempéries à déduire."]
[]
["Mois de la déclaration de salaires","Cotisation intempéries déclarée",null,null,"Abattement déjà déduit","Abattement restant à déduire","Abattement à déduire de la déclaration"]
[null,"Assiette","Taux","Montant",null,null,"Assiette","Taux","Montant"]
[{"$f":"B4","v":"2022-04-01"},0,{"$f":"$E$6","v":6.7999999999999996E-3},{"$f":"ROUND(ROUND(B25,0)*C25,2)","v":0},0,{"$f":"$B$12-E25","v":84564},{"$f":"MIN(ROUND(B25,0),F25)","v":0},{"$f":"C25","v":6.7999999999999996E-3},{"$f":"ROUND(ROUND(G25,0)*H25,2)","v":0}]
[{"$f":"A25+30","v":"2022-05-01"},0,6.7999999999999996E-3,0,{"$f":"SUM($G$25:G25)+SUM('Ma feuille de travail - SO'!$G$25:G25)","v":0},84564,{"$f":"MIN(ROUND(B26,0),F26)","v":0},{"$f":"C26","v":6.7999999999999996E-3},0]
[{"$f":"A26+31","v":"2022-06-01"},0,6.7999999999999996E-3,0,{"$f":"SUM($G$25:G26)+SUM('Ma feuille de travail - SO'!$G$25:G26)","v":0},84564,0,6.7999999999999996E-3,0]
["2022-07-01",0,6.7999999999999996E-3,0,{"$f":"SUM($G$25:G27)+SUM('Ma feuille de travail - SO'!$G$25:G27)","v":0},84564,0,6.7999999999999996E-3,0]
[{"$f":"A28+31","v":"2022-08-01"},0,6.7999999999999996E-3,0,{"$f":"SUM($G$25:G28)+SUM('Ma feuille de travail - SO'!$G$25:G28)","v":0},84564,0,6.7999999999999996E-3,0]
[{"$f":"A29+31","v":"2022-09-01"},0,6.7999999999999996E-3,0,{"$f":"SUM($G$25:G29)+SUM('Ma feuille de travail - SO'!$G$25:G29)","v":0},84564,0,6.7999999999999996E-3,0]
["2022-10-01",0,{"$f":"IF(OR(VLOOKUP(\"X\",'Paramètres campagne'!$A$3:$G$19,2,FALSE)=68,VLOOKUP(\"X\",'Paramètres campagne'!$A$3:$G$19,2,FALSE)=73),$F$6,$E$6)","v":6.7999999999999996E-3},0,{"$f":"SUM($G$25:G30)+SUM('Ma feuille de travail - SO'!$G$25:G30)","v":0},84564,0,6.7999999999999996E-3,0]
[{"$f":"A31+31","v":"2022-11-01"},0,{"$f":"IF(OR(VLOOKUP(\"X\",'Paramètres campagne'!$A$3:$G$19,2,FALSE)=68,VLOOKUP(\"X\",'Paramètres campagne'!$A$3:$G$19,2,FALSE)=73),$F$6,$E$6)","v":6.7999999999999996E-3},0,{"$f":"SUM($G$25:G31)+SUM('Ma feuille de travail - SO'!$G$25:G31)","v":0},84564,0,6.7999999999999996E-3,0]
["2022-12-01",0,{"$f":"IF(OR(VLOOKUP(\"X\",'Paramètres campagne'!$A$3:$G$19,2,FALSE)=68,VLOOKUP(\"X\",'Paramètres campagne'!$A$3:$G$19,2,FALSE)=73),$F$6,$E$6)","v":6.7999999999999996E-3},0,{"$f":"SUM($G$25:G32)+SUM('Ma feuille de travail - SO'!$G$25:G32)","v":0},84564,0,6.7999999999999996E-3,0]
[{"$f":"A33+31","v":"2023-01-01"},0,{"$f":"IF(OR(VLOOKUP(\"X\",'Paramètres campagne'!$A$3:$G$19,2,FALSE)=68,VLOOKUP(\"X\",'Paramètres campagne'!$A$3:$G$19,2,FALSE)=73),$F$6,$E$6)","v":6.7999999999999996E-3},0,{"$f":"SUM($G$25:G33)+SUM('Ma feuille de travail - SO'!$G$25:G33)","v":0},84564,0,6.7999999999999996E-3,0]
[{"$f":"A34+31","v":"2023-02-01"},0,{"$f":"IF(OR(VLOOKUP(\"X\",'Paramètres campagne'!$A$3:$G$19,2,FALSE)=68,VLOOKUP(\"X\",'Paramètres campagne'!$A$3:$G$19,2,FALSE)=73),$F$6,$E$6)","v":6.7999999999999996E-3},0,{"$f":"SUM($G$25:G34)+SUM('Ma feuille de travail - SO'!$G$25:G34)","v":0},84564,0,6.7999999999999996E-3,0]
["2023-03-03",0,{"$f":"IF(OR(VLOOKUP(\"X\",'Paramètres campagne'!$A$3:$G$19,2,FALSE)=68,VLOOKUP(\"X\",'Paramètres campagne'!$A$3:$G$19,2,FALSE)=73),$F$6,$E$6)","v":6.7999999999999996E-3},0,{"$f":"SUM($G$25:G35)+SUM('Ma feuille de travail - SO'!$G$25:G35)","v":0},84564,0,6.7999999999999996E-3,0]
["Total de la campagne",{"$f":"SUM(B25:B36)","v":0},null,{"$f":"SUM(D25:D36)","v":0},null,null,{"$f":"SUM(G25:G36)","v":0},null,{"$f":"SUM(I25:I36)","v":0}]

{"sheet":"Ma feuille de travail - SO","index":3,"n_rows":37,"n_cols":9,"rows_kept":37,"cut":false,"hidden":false,"merged":[[22,5,23,5],[22,1,22,3],[0,0,0,8],[22,0,23,0],[20,0,20,3],[15,0,15,8],[16,0,16,8],[17,0,17,8],[20,5,20,8],[22,6,22,8],[22,4,23,4],[14,0,14,8]]}
["MA FEUILLE DE TRAVAIL - INTEMPERIES SECOND ŒUVRE"]
[null,null,null,null,null,null,null,null,"I0029 V2 (090409)"]
[]
["Campagne du :",{"$f":"VLOOKUP(\"X\",'Paramètres campagne'!$A$3:$G$19,3,FALSE)","v":"2022-04-01"},"au",{"$f":"IF(OR(VLOOKUP(\"X\",'Paramètres campagne'!$A$3:$G$19,2,FALSE)=68,VLOOKUP(\"X\",'Paramètres campagne'!$A$3:$G$19,2,FALSE)=73),VLOOKUP(\"X2\",'Paramètres campagne'!$A$3:$G$19,4,FALSE),VLOOKUP(\"X\",'Paramètres campagne'!$A$3:$G$19,4,FALSE))","v":"2023-03-31"},null,{"$f":"VLOOKUP(\"X\",'Paramètres campagne'!$A$3:$G$19,2)&\"ème campagne\"","v":"77ème campagne"}]
[]
["Taux d'appel de la cotisation intempéries:",null,null,"Gros œuvre",{"$f":"VLOOKUP(\"X\",'Paramètres campagne'!$A$3:$G$19,6,FALSE)","v":6.7999999999999996E-3},{"$f":"IF(ISERROR(VLOOKUP(\"X2\",'Paramètres campagne'!$A$3:$G$19,6,FALSE)),\"\",VLOOKUP(\"X2\",'Paramètres campagne'!$A$3:$G$19,6,FALSE))","v":""}]
[null,null,null,"Second œuvre",{"$f":"VLOOKUP(\"X\",'Paramètres campagne'!$A$3:$G$19,7,FALSE)","v":1.2999999999999999E-3},{"$f":"IF(ISERROR(VLOOKUP(\"X2\",'Paramètres campagne'!$A$3:$G$19,7,FALSE)),\"\",VLOOKUP(\"X2\",'Paramètres campagne'!$A$3:$G$19,7,FALSE))","v":""}]
[]
["Montant de l'abattement intempéries annuel :"]
[]
[null,"Base annuelle maximale à déduire","Taux de cotisation","Montant annuel maximal à déduire\n(sauf écarts d'arrondis)"]
[null,{"$f":"VLOOKUP(\"X\",'Paramètres campagne'!$A$3:$G$19,5,FALSE)","v":84564},{"$f":"$E$7","v":1.2999999999999999E-3},{"$f":"ROUND(ROUND(B12,0)*C12,2)","v":109.93}]
[]
["Comment déduire l'abattement intempéries ?"]
["La déduction de l'abattement intempéries est automatique pour les adhérents qui utilisent la TDP ou la DSN pour déclarer leurs cotisations mensuelles. Sur le site cnetp.fr son montant apparaît, soit au niveau de la déclaration de salaires (TDP), soit de l'appel de cotisations (DSN). "]
["La déduction s'opère chaque mois d'une campagne sous le \"total des cotisations\". Le montant de l'abattement déduit ne dépasse jamais celui de la cotisation intempéries indiqué sur la déclaration."]
["Pour les adhérents qui n’utilisent pas la DSN, il est donc indispensable de renseigner systématiquement le montant de l’assiette plafonnée sur chacune de leurs déclarations de salaires."]
[{"$f":"\"La déduction s'arrête lorsque le cumul des assiettes de cotisations intempéries déclaré atteint le montant annuel de l'abattement, soit \"&TEXT(B12,\"# ### €\")&\" pour la \"&F4&\".\"","v":"La déduction s'arrête lorsque le cumul des assiettes de cotisations intempéries déclaré atteint le montant annuel de l'abattement, soit 84 564 € pour la 77ème campagne."}]
[null,null,null,null,null,null,null,null,"S00056-10"]
["MA FEUILLE DE TRAVAIL SECOND ŒUVRE"]
["1 - Saisir chaque mois, dans la colonne \"Assiette\" du tableau \nci-dessous, le montant des salaires intempéries indiqué sur la ligne \"INTEMPERIES SO\" de votre déclaration de salaires ou de l'appel de cotisations généré à partir de votre DSN.\n\n2 - Sauvegarder le fichier.\n\n3 - Vérifier le montant de la cotisation de votre déclaration sur la ligne \"INTEMPERIES SO\".",null,null,null,null,"4 - Sur cnetp.fr vous pouvez alors retrouver, au niveau de la déclaration de salaires (TDP) ou de l'appel de cotisations (DSN), le montant de l'ABATTEMENT A DEDUIRE calculé automatiquement.\n\n5 - Le montant à régler en bas de la déclaration tient compte de l'abattement intempéries à déduire."]
[]
["Mois de la déclaration de salaires","Cotisation intempéries déclarée",null,null,"Abattement déjà déduit","Abattement restant à déduire","Abattement à déduire de la déclaration"]
[null,"Base","Taux","Montant",null,null,"Base","Taux","Montant"]
[{"$f":"B4","v":"2022-04-01"},0,{"$f":"$E$7","v":1.2999999999999999E-3},{"$f":"ROUND(ROUND(B25,0)*C25,2)","v":0},{"$f":"0+'Ma feuille de travail - GO'!G25","v":0},{"$f":"$B$12-E25","v":84564},{"$f":"MIN(ROUND(B25,0),F25)","v":0},{"$f":"C25","v":1.2999999999999999E-3},{"$f":"ROUND(ROUND(G25,0)*H25,2)","v":0}]
[{"$f":"A25+30","v":"2022-05-01"},0,1.2999999999999999E-3,0,{"$f":"SUM($G$25:G25)+SUM('Ma feuille de travail - GO'!$G$25:G26)","v":0},84564,{"$f":"MIN(ROUND(B26,0),F26)","v":0},{"$f":"C26","v":1.2999999999999999E-3},0]
[{"$f":"A26+31","v":"2022-06-01"},0,1.2999999999999999E-3,0,{"$f":"SUM($G$25:G26)+SUM('Ma feuille de travail - GO'!$G$25:G27)","v":0},84564,0,1.2999999999999999E-3,0]
["2022-07-01",0,1.2999999999999999E-3,0,{"$f":"SUM($G$25:G27)+SUM('Ma feuille de travail - GO'!$G$25:G28)","v":0},84564,0,1.2999999999999999E-3,0]
[{"$f":"A28+31","v":"2022-08-01"},0,1.2999999999999999E-3,0,{"$f":"SUM($G$25:G28)+SUM('Ma feuille de travail - GO'!$G$25:G29)","v":0},84564,0,1.2999999999999999E-3,0]
[{"$f":"A29+31","v":"2022-09-01"},0,1.2999999999999999E-3,0,{"$f":"SUM($G$25:G29)+SUM('Ma feuille de travail - GO'!$G$25:G30)","v":0},84564,0,1.2999999999999999E-3,0]
["2022-10-01",0,{"$f":"IF(OR(VLOOKUP(\"X\",'Paramètres campagne'!$A$3:$G$19,2,FALSE)=68,VLOOKUP(\"X\",'Paramètres campagne'!$A$3:$G$19,2,FALSE)=73),$F$7,$E$7)","v":1.2999999999999999E-3},0,{"$f":"SUM($G$25:G30)+SUM('Ma feuille de travail - GO'!$G$25:G31)","v":0},84564,0,1.2999999999999999E-3,0]
[{"$f":"A31+31","v":"2022-11-01"},0,{"$f":"IF(OR(VLOOKUP(\"X\",'Paramètres campagne'!$A$3:$G$19,2,FALSE)=68,VLOOKUP(\"X\",'Paramètres campagne'!$A$3:$G$19,2,FALSE)=73),$F$7,$E$7)","v":1.2999999999999999E-3},0,{"$f":"SUM($G$25:G31)+SUM('Ma feuille de travail - GO'!$G$25:G32)","v":0},84564,0,1.2999999999999999E-3,0]
["2022-12-01",0,{"$f":"IF(OR(VLOOKUP(\"X\",'Paramètres campagne'!$A$3:$G$19,2,FALSE)=68,VLOOKUP(\"X\",'Paramètres campagne'!$A$3:$G$19,2,FALSE)=73),$F$7,$E$7)","v":1.2999999999999999E-3},0,{"$f":"SUM($G$25:G32)+SUM('Ma feuille de travail - GO'!$G$25:G33)","v":0},84564,0,1.2999999999999999E-3,0]
[{"$f":"A33+31","v":"2023-01-01"},0,{"$f":"IF(OR(VLOOKUP(\"X\",'Paramètres campagne'!$A$3:$G$19,2,FALSE)=68,VLOOKUP(\"X\",'Paramètres campagne'!$A$3:$G$19,2,FALSE)=73),$F$7,$E$7)","v":1.2999999999999999E-3},0,{"$f":"SUM($G$25:G33)+SUM('Ma feuille de travail - GO'!$G$25:G34)","v":0},{"$f":"$B$12-E34","v":84564},0,1.2999999999999999E-3,0]
[{"$f":"A34+31","v":"2023-02-01"},0,{"$f":"IF(OR(VLOOKUP(\"X\",'Paramètres campagne'!$A$3:$G$19,2,FALSE)=68,VLOOKUP(\"X\",'Paramètres campagne'!$A$3:$G$19,2,FALSE)=73),$F$7,$E$7)","v":1.2999999999999999E-3},0,{"$f":"SUM($G$25:G34)+SUM('Ma feuille de travail - GO'!$G$25:G35)","v":0},84564,0,1.2999999999999999E-3,0]
["2023-03-03",0,{"$f":"IF(OR(VLOOKUP(\"X\",'Paramètres campagne'!$A$3:$G$19,2,FALSE)=68,VLOOKUP(\"X\",'Paramètres campagne'!$A$3:$G$19,2,FALSE)=73),$F$7,$E$7)","v":1.2999999999999999E-3},0,{"$f":"SUM($G$25:G35)+SUM('Ma feuille de travail - GO'!$G$25:G36)","v":0},84564,0,1.2999999999999999E-3,0]
["Total de la campagne",{"$f":"SUM(B25:B36)","v":0},null,{"$f":"SUM(D25:D36)","v":0},null,null,{"$f":"SUM(G25:G36)","v":0},null,{"$f":"SUM(I25:I36)","v":0}]